bitfinex-derivatives/quotes_SOLF0:USTF0_20250712
["timestamp","ask_amount","ask_price","bid_price","bid_amount"]
[1752332141734,185.16,159.1,159.07,3.52]
[1752332141933,6.2826,159.12,159.07,3.52]
[1752332142335,188.73,159.14,159.09,9.8033]
[1752332142633,6.2823,159.13,159.1,3.52]
[1752332143032,6.2823,159.13,159.1,3.5654862]
[1752332143530,6.2823,159.13,159.1,6.3285862]
[1752332143729,6.2823,159.13,159.11,3.52]
[1752332144135,185.22,159.14,159.11,3.52]
[1752332144437,185.2,159.18,159.12,3.52]
[1752332144733,185.16,159.19,159.14,3.52]
[1752332145039,3.37,159.16,159.13,3.37]
[1752332145226,9.6508,159.16,159.15,0.0398238]
[1752332145933,6.2808,159.16,159.15,3.4098238]
[1752332146731,3.37,159.18,159.15,3.4098238]
[1752332146936,185.16,159.19,159.15,3.4098238]
[1752332147230,191.4397,159.19,159.15,3.4098238]
[1752332147533,185.16,159.19,159.16,3.37]
[1752332147737,6.2806,159.17,159.16,3.37]
[1752332147939,3.37,159.17,159.15,3.4098238]
[1752332148234,6.47544465,159.19,159.16,3.37]
[1752332148430,6.2801,159.18,159.16,3.37]
[1752332148626,6.47544465,159.19,159.17,3.37]
[1752332148834,6.2802,159.18,159.16,3.37]
[1752332149034,188.44544465,159.21,159.17,3.37]
[1752332149235,3.37,159.19,159.17,3.37]
[1752332149429,3.37,159.22,159.17,3.37]
[1752332149632,188.81,159.21,159.17,3.37]
[1752332150042,6.28,159.18,159.17,3.37]
[1752332150239,3.37,159.2,159.17,3.37]
[1752332150437,185.44,159.21,159.17,3.37]
[1752332150837,188.81,159.21,159.17,3.37]
[1752332151036,188.81,159.21,159.17,3.40963189]
[1752332151438,3.37,159.2,159.18,3.37]
[1752332151936,9.6492,159.2,159.19,3.37]
[1752332152138,6.2792,159.2,159.19,3.37]
[1752332152534,6.2789,159.21,159.2,3.37]
[1752332152733,6.47544465,159.24,159.17,0.03963189]
[1752332152734,185.32,159.23,159.17,0.03963189]
[1752332152934,6.2787,159.22,159.18,3.37]
[1752332153136,185.32,159.23,159.18,3.10544465]
[1752332153331,185.32,159.23,159.19,3.37]
[1752332153734,3.37,159.25,159.21,3.37]
[1752332153934,3.37,159.24,159.22,3.37]
[1752332154131,3.37,159.24,159.17,3.37]
[1752332154132,3.37,159.23,159.17,3.37]
[1752332154336,3.37,159.22,159.18,3.37]
[1752332154534,6.2781,159.23,159.18,3.10544465]
[1752332154733,6.2781,159.23,159.19,6.2793]
[1752332154936,6.2781,159.23,159.2,3.37]
[1752332155338,337.56619572,159.26,159.2,9.6492]
[1752332155544,3.37,159.25,159.21,3.37]
[1752332155737,334.19619572,159.26,159.09,5.2861285]
[1752332155738,3.10544465,159.22,159.09,5.2861285]
[1752332156040,3.10544465,159.18,159.12,3.37]
[1752332156241,3.37,159.18,159.12,3.37]
[1752332156542,6.2815,159.15,159.12,3.37]
[1752332156750,6.47544465,159.18,159.12,3.37]
[1752332156751,3.37,159.17,159.12,3.37]
[1752332156933,3.37,159.16,159.12,3.37]
[1752332157340,3.37,159.18,159.13,3.37]
[1752332157736,185.36,159.22,159.13,5.15788668]
[1752332157737,3.37,159.2,159.13,5.15788668]
[1752332157939,3.37,159.2,159.14,3.37]
[1752332158637,193.88788668,159.22,159.16,3.37]
[1752332158843,3.37,159.21,159.16,3.37]
[1752332159040,6.2811,159.16,159.12,6.2821]
[1752332159749,6.2811,159.16,159.13,3.37]
[1752332160144,5.15788668,159.2,159.13,3.37]
[1752332160145,3.37,159.19,159.13,3.37]
[1752332160741,6.2814,159.15,159.14,0.03979792]
[1752332161151,6.2814,159.15,159.14,3.40979792]
[1752332161839,6.281,159.16,159.14,3.40979792]
[1752332162243,6.2808,159.16,159.15,3.37]
[1752332163345,5.15788668,159.2,159.16,3.37]
[1752332163543,3.37,159.17,159.14,0.03979792]
[1752332163746,9.6512,159.15,159.14,0.03979792]
[1752332163952,5.15788668,159.16,159.14,0.03979792]
[1752332163953,1.09318799,159.25,159.14,3.40979792]
[1752332164151,3.37,159.2,159.14,3.40979792]
[1752332164347,3.37,159.2,159.15,3.37]
[1752332165349,3.37,159.2,159.04,548.4261285]
[1752332165350,3.37,159.23,159.17,3.37]
[1752332165751,6.2786,159.22,159.17,3.37]
[1752332165952,1.09318799,159.25,159.11,3.37]
[1752332165953,3.37,159.24,159.11,3.37]
[1752332166153,3.37,159.24,159.17,3.37]
[1752332166455,6.2795,159.2,159.17,3.37]
[1752332166753,3.37,159.21,159.17,3.37]
[1752332166950,6.2793,159.2,159.17,3.37]
[1752332167258,1.09318799,159.25,159.19,3.37]
[1752332167259,3.37,159.23,159.19,3.37]
[1752332167456,3.37,159.24,159.17,3.37]
[1752332167644,6.2795,159.2,159.18,3.37]
[1752332167850,6.2795,159.2,159.19,3.37]
[1752332168052,6.279,159.21,159.2,3.37]
[1752332168252,9.649,159.21,159.2,3.37]
[1752332168449,3.37,159.24,159.17,3.37]
[1752332168656,3.37,159.24,159.18,3.37]
[1752332169354,6.2793,159.2,159.17,6.2801]
[1752332169549,5.15788668,159.24,159.14,5.15788668]
[1752332169747,3.37,159.23,159.15,3.37]
[1752332170157,3.37,159.23,159.16,6.2805]
[1752332170458,6.2796,159.19,159.17,3.37]
[1752332170855,6.2796,159.19,159.18,3.37]
[1752332172054,5.15788668,159.24,159.18,3.37]
[1752332172055,6.2793,159.2,159.18,3.37]
[1752332172355,6.2793,159.2,159.08,5.20576949]
[1752332172356,3.37,159.21,159.13,5.15788668]
[1752332172568,3.37,159.21,159.15,3.37]
[1752332173061,3.37,159.18,159.16,3.37]
[1752332173255,3.37,159.17,159.16,3.37]
[1752332173451,9.6504,159.17,159.16,3.37]
[1752332173654,5.15788668,159.18,159.13,3.37]
[1752332173862,3.37,159.17,159.11,5.15788668]
[1752332174062,6.2804,159.17,159.12,3.37]
[1752332174262,6.2804,159.17,159.15,3.37]
[1752332175256,6.2804,159.17,159.16,3.59]
[1752332175462,9.7804,159.17,159.16,3.59]
[1752332176057,3.5,159.16,159.12,3.59]
[1752332176450,9.781,159.16,159.13,6.2817]
[1752332176657,9.781,159.16,159.15,3.59]
[1752332176854,6.281,159.16,159.15,3.59]
[1752332177370,6.2805,159.17,159.15,3.59]
[1752332177561,3.5,159.18,159.15,3.59]
[1752332177761,6.2804,159.17,159.16,3.59]
[1752332177955,9.7804,159.17,159.16,3.59]
[1752332178563,3.5,159.2,159.14,3.59]
[1752332178862,3.5,159.18,159.14,3.59]
[1752332179167,6.2805,159.17,159.14,3.59]
[1752332179365,3.5,159.16,159.14,3.59]
[1752332179667,3.5,159.19,159.11,3.59]
[1752332179866,6.2802,159.18,159.14,6.2813]
[1752332180059,3.5,159.17,159.15,3.59]
[1752332181061,9.7805,159.17,159.15,3.59]
[1752332181460,3.5,159.17,159.16,3.59]
[1752332183458,3.5,159.17,159.14,0.03969994]
[1752332183762,3.5,159.18,159.16,3.59]
[1752332183958,3.5,159.17,159.16,3.59]
[1752332184162,3.5,159.19,159.16,3.59]
[1752332184868,9.7799,159.19,159.16,6.2806]
[1752332185060,9.7799,159.19,159.18,3.59]
[1752332185466,3.5,159.19,159.18,3.59]
[1752332185868,9.7791,159.21,159.18,9.8699]
[1752332186069,3.5,159.21,159.17,3.09449428]
[1752332186269,3.5,159.22,159.21,3.59]
[1752332186471,9.7785,159.22,159.21,3.59]
[1752332186669,3.5,159.24,159.17,3.09449428]
[1752332186870,3.5,159.23,159.22,3.59]
[1752332187066,9.7782,159.23,159.22,3.59]
[1752332187263,186.61318799,159.25,159.22,3.59]
[1752332187571,190.11318799,159.25,159.2,3.59]
[1752332187769,9.7777,159.24,159.21,6.2787]
[1752332187966,190.11318799,159.25,159.23,3.59]
[1752332188472,3.5,159.24,159.23,3.59]
[1752332189175,9.7776,159.24,159.23,3.59]
[1752332190069,6.2787,159.22,159.19,9.37399428]
[1752332190272,3.5,159.24,159.2,3.59]
[1752332190671,6.2795,159.2,159.18,3.59]
[1752332190864,9.7795,159.2,159.19,3.59]
[1752332191171,6.2795,159.2,159.19,3.59]
[1752332191873,3.5,159.22,159.19,3.59]
[1752332192975,6.279,159.21,159.19,3.59]
[1752332193172,6.279,159.21,159.2,3.59]
[1752332193975,6.2796,159.19,159.18,3.62977103]
[1752332194369,9.7796,159.19,159.18,3.62977103]
[1752332195066,6.2796,159.19,159.18,3.62977103]
[1752332195267,3.5,159.19,159.16,3.59]
[1752332195568,6.2804,159.17,159.13,5.24654753]
[1752332195773,3.5,159.16,159.15,3.59]
[1752332196166,9.7808,159.16,159.15,3.59]
[1752332196571,3.5,159.16,159.13,5.24654753]
[1752332196775,12.5565,159.23,159.13,3.59]
[1752332196971,3.5,159.17,159.13,5.24654753]
[1752332197171,9.781,159.16,159.14,3.59]
[1752332198079,6.281,159.16,159.14,3.59]
[1752332198278,3.5,159.15,159.14,3.59]
[1752332199384,9.7812,159.15,159.14,3.59]
[1752332200475,0.03987613,159.17,159.12,6.68449428]
[1752332200679,0.03987613,159.17,159.14,3.59]
[1752332200877,0.03987613,159.17,159.16,6.2808]
[1752332201080,0.03987613,159.17,159.16,9.8708]
[1752332202280,0.03987613,159.17,159.16,18.21184181]
[1752332202480,0.03987613,159.17,159.16,12.96529428]
[1752332202681,0.03987613,159.17,159.16,18.21184181]
[1752332204783,0.03987613,159.17,159.16,15.11734753]
[1752332206180,3.34,159.23,159.17,3.44]
[1752332206376,3.34,159.23,159.18,3.44]
[1752332206377,9.6183,159.23,159.18,3.44]
[1752332206583,3.34,159.23,159.19,6.2793]
[1752332206789,3.09449428,159.24,159.21,3.44]
[1752332206790,3.34,159.22,159.21,3.44]
[1752332207983,9.6185,159.22,159.21,3.44]
[1752332208585,9.6189,159.21,159.19,3.44]
[1752332208784,3.34,159.2,159.19,3.44]
[1752332209585,6.2789,159.21,159.19,9.7196]
[1752332209884,9.6189,159.21,159.2,3.44]
[1752332210985,9.6189,159.21,159.18,9.7198]
[1752332211185,6.43449428,159.2,159.16,3.44]
[1752332211386,3.34,159.19,159.18,0.03956615]
[1752332211586,9.6196,159.19,159.18,0.03956615]
[1752332215893,9.6196,159.19,159.18,3.47956615]
[1752332216987,6.2796,159.19,159.18,3.47956615]
[1752332218792,9.6196,159.19,159.18,3.47956615]
[1752332219995,9.6196,159.19,159.18,0.03956615]
[1752332227403,193.7596,159.19,159.18,6.615e-05]
[1752332228695,9.6212,159.15,159.14,3.44]
[1752332229306,6.2812,159.15,159.14,3.44]
[1752332229500,3.34,159.17,159.14,3.44]
[1752332229706,3.09449428,159.18,159.14,3.44]
[1752332230005,6.2812,159.15,159.14,3.44]
[1752332231811,6.281,159.16,159.14,3.44]
[1752332235313,6.2812,159.15,159.14,3.44]
[1752332235509,3.34,159.17,159.14,3.44]
[1752332235815,6.2812,159.16,159.14,3.44]
[1752332236212,9.7212,159.16,159.14,3.44]
[1752332236407,6.2812,159.15,159.14,3.44]
[1752332236608,3.44,159.16,159.14,3.63]
[1752332236814,3.44,159.16,159.13,6.2819]
[1752332237008,9.7208,159.16,159.15,3.63]
[1752332237717,6.53449428,159.16,159.13,3.63]
[1752332238017,3.09449428,159.16,159.13,3.63]
[1752332238216,3.44,159.14,159.13,3.63]
[1752332238417,6.2816,159.14,159.13,3.63]
[1752332240422,9.7216,159.14,159.13,3.63]
[1752332240621,6.2814,159.15,159.13,3.63]
[1752332241017,9.7214,159.15,159.13,3.63]
[1752332241624,9.7216,159.14,159.12,3.63]
[1752332241822,3.44,159.14,159.13,3.63]
[1752332242217,6.2816,159.14,159.13,3.63]
[1752332244617,6.2814,159.15,159.13,9.9118]
[1752332244816,3.44,159.18,159.13,3.63]
[1752332245014,3.44,159.17,159.13,3.63]
[1752332245220,6.281,159.16,159.13,3.63]
[1752332246124,9.721,159.16,159.14,6.2816]
[1752332246324,9.721,159.16,159.15,3.63]
[1752332246520,6.2806,159.17,159.15,3.63]
[1752332246823,3.09449428,159.19,159.15,3.63]
[1752332247215,6.2802,159.18,159.15,9.9109]
[1752332247418,6.2802,159.18,159.16,3.63]
[1752332247814,6.31982997,159.18,159.16,3.63]
[1752332248217,6.2804,159.17,159.16,3.63]
[1752332250428,9.7204,159.17,159.16,3.63]
[1752332251326,9.7204,159.17,159.13,5.27928125]
[1752332251327,6.2815,159.15,159.14,3.63]
[1752332252327,6.282,159.13,159.12,5.27928125]
[1752332252530,6.282,159.13,159.11,5.27928125]
[1752332252720,6.282,159.13,159.1,5.27928125]
[1752332252917,6.282,159.13,159.11,3.63]
[1752332253529,6.2825,159.12,159.1,11.56218125]
[1752332254224,6.2825,159.12,159.11,3.63]
[1752332255827,9.7225,159.12,159.11,3.63]
[1752332257530,6.2825,159.12,159.11,3.63]
[1752332258732,9.7225,159.12,159.11,3.63]
[1752332259231,6.2825,159.12,159.11,3.63]
[1752332261330,9.7225,159.12,159.11,3.63]
[1752332263433,6.2832,159.1,159.08,5.27928125]
[1752332263627,6.2832,159.1,159.09,3.63]
[1752332265740,9.7829,159.11,159.09,3.63]
[1752332266039,6.2829,159.11,159.09,3.63]
[1752332268939,9.7829,159.11,159.09,3.63]
[1752332269140,6.2832,159.1,159.09,3.63]
[1752332269538,9.7832,159.1,159.09,3.63]
[1752332269737,6.2829,159.11,159.09,3.63]
[1752332270141,6.2829,159.11,159.09,9.9135]
[1752332270335,6.2829,159.11,159.1,3.34]
[1752332270541,3.53987169,159.13,159.1,3.34]
[1752332270738,3.53987169,159.13,159.11,3.34]
[1752332271136,0.03987169,159.13,159.11,3.34]
[1752332271539,6.32227169,159.13,159.11,3.34]
[1752332271742,9.82227169,159.13,159.11,3.34]
[1752332271944,9.82227169,159.13,159.12,3.34]
[1752332275242,0.03987169,159.13,159.12,3.34]
[1752332277247,6.32187169,159.13,159.12,3.34]
[1752332279949,0.03987169,159.13,159.12,3.34]
[1752332280947,6.32187169,159.13,159.12,3.34]
[1752332281247,9.82187169,159.13,159.12,3.34]
[1752332281649,3.53987169,159.13,159.1,3.34]
[1752332281849,3.5,159.11,159.1,3.34]
[1752332282252,9.7828,159.11,159.1,3.34]
[1752332282446,3.5,159.1,159.09,3.34]
[1752332282656,6.284,159.08,159.06,11.56378125]
[1752332282854,6.284,159.08,159.07,3.34]
[1752332283054,3.5,159.08,159.05,5.27928125]
[1752332283252,9.7843,159.07,159.06,3.34]
[1752332283550,3.5,159.07,159.03,3.34]
[1752332283752,183.54,159.11,159.01,3.34]
[1752332283753,6.2862,159.03,159.01,3.34]
[1752332284054,3.5,159.02,159.01,3.34]
[1752332285654,3.09449428,159.08,159.01,6.43449428]
[1752332285856,3.5,159.09,159.04,3.34]
[1752332286043,742.39770528,159.13,159.03,3.09449428]
[1752332286044,12.87739428,159.11,159.07,6.2842]
[1752332286244,6.59449428,159.11,159.09,3.34]
[1752332286445,3.5,159.1,159.09,3.34]
[1752332286952,9.7836,159.09,159.06,3.34]
[1752332287255,3.5,159.08,159.07,3.34]
[1752332288355,9.7839,159.08,159.07,3.34]
[1752332288550,3.5,159.08,159.07,3.34]
[1752332288751,9.7839,159.08,159.07,3.34]
[1752332291755,3.09449428,159.09,158.98,7.00262773]
[1752332291756,9.7846,159.07,159.06,3.34]
[1752332296862,9.764,159.08,159.06,3.34]
[1752332297061,190.13449428,159.09,159.06,3.34]
[1752332297262,183.56,159.09,159.06,3.34]
[1752332297861,183.56,159.09,159.07,6.2839]
[1752332298160,183.56,159.09,159.08,3.63]
[1752332298754,3.48,159.07,159.03,5.27928125]
[1752332298957,183.56,159.09,159.02,5.27928125]
[1752332299158,3.48,159.08,159.07,3.63]
[1752332299653,183.56,159.09,159.07,3.63]
[1752332300860,189.8437,159.09,159.07,3.63]
[1752332302569,183.56,159.11,159.08,3.63]
[1752332302961,189.843,159.11,159.08,9.9137]
[1752332303259,189.843,159.11,159.09,3.63]
[1752332303666,6.2832,159.1,159.09,3.63]
[1752332304668,189.8428,159.11,159.09,3.63]
[1752332305065,183.56,159.11,159.09,3.63]
[1752332306265,6.2832,159.1,159.09,3.63]
[1752332306457,183.56,159.11,159.09,3.63]
[1752332307356,183.56,159.11,159.1,6.2832]
[1752332307561,183.56,159.11,159.1,9.9132]
[1752332309174,0.03984428,159.12,159.11,3.63]
[1752332309666,0.03984428,159.12,159.11,9.9127]
[1752332309872,6.32224428,159.12,159.11,3.63]
[1752332311470,9.80224428,159.12,159.11,3.63]
[1752332313372,9.80224428,159.12,159.09,6.2835]
[1752332313577,3.48,159.11,159.1,3.63]
[1752332314485,9.80224428,159.12,159.11,3.63]
[1752332317685,9.80224428,159.12,159.07,3.63]
[1752332317686,3.48,159.11,159.07,3.63]
[1752332317986,3.48,159.08,159.07,3.63]
[1752332318181,186.94,159.08,159.07,3.63]
[1752332318383,193.224,159.08,159.07,3.63]
[1752332318579,183.46,159.08,159.02,8.37377553]
[1752332318788,6.57449428,159.07,159.03,3.63]
[1752332319087,3.48,159.06,159.04,3.63]
[1752332319382,6.2852,159.05,159.04,3.63]
[1752332320781,3.09449428,159.07,159.05,3.63]
[1752332321385,183.46,159.08,159.05,9.915]
[1752332321587,183.46,159.08,159.05,6.285]
[1752332321886,183.46,159.08,159.06,3.63]
[1752332322081,183.49979909,159.08,159.06,3.63]
[1752332322682,6.2844,159.07,159.06,3.63]
[1752332323375,183.49979909,159.08,159.07,3.63]
[1752332324985,193.17379909,159.08,159.07,3.63]
[1752332325383,189.78379909,159.08,159.07,3.63]
[1752332327389,0.03979909,159.08,159.07,3.63]
[1752332328787,0.03979909,159.08,159.07,9.9144]
[1752332329183,0.03979909,159.08,159.07,3.63]
[1752332330387,0.03979909,159.08,159.07,9.9144]
[1752332331492,0.03979909,159.08,159.07,15.19368125]
[1752332331691,183.46,159.12,159.11,3.45]
[1752332331891,3.09449428,159.15,159.11,3.45]
[1752332332087,6.2824,159.12,159.11,3.45]
[1752332332287,3.39,159.14,159.11,3.45]
[1752332332485,3.09449428,159.15,159.11,3.45]
[1752332332786,3.39,159.14,159.11,3.45]
[1752332333186,6.2824,159.12,159.09,5.28329774]
[1752332333393,3.39,159.1,159.09,5.28329774]
[1752332333594,186.51449428,159.11,159.08,3.45]
[1752332333786,12.76849428,159.09,159.08,3.45]
[1752332334292,9.6748,159.07,159.06,3.45]
[1752332334491,3.09449428,159.07,159.04,5.28329774]
[1752332334687,6.48449428,159.05,159.04,5.28329774]
[1752332334892,3.39,159.04,159.03,5.28329774]
[1752332335191,3.39,159.03,159.0,3.45]
[1752332335382,3.09449428,159.01,159.0,3.45]
[1752332337789,9.38129428,159.01,159.0,3.45]
[1752332337993,12.77129428,159.01,159.0,3.45]
[1752332338585,6.48449428,159.01,159.0,3.45]
[1752332339096,3.09449428,159.01,159.0,3.45]
[1752332339291,3.09449428,159.01,158.94,3.45]
[1752332339493,3.09449428,158.99,158.94,3.45]
[1752332340394,3.39,159.03,158.94,3.45]
[1752332340587,6.48449428,159.03,158.95,3.45]
[1752332340992,12.77069428,159.03,158.99,6.2876]
[1752332341297,3.39,159.02,159.01,3.45]
[1752332341499,3.09449428,159.03,159.01,3.45]
[1752332341698,6.48449428,159.05,159.02,3.45]
[1752332341897,3.39,159.07,159.02,3.45]
[1752332342291,3.39,159.07,159.04,6.2854]
[1752332342491,3.39,159.07,159.06,3.45]
[1752332342997,9.6745,159.07,159.06,3.45]
[1752332343398,3.39,159.07,159.06,3.45]
[1752332345799,12.76879428,159.08,159.07,3.45]
[1752332348002,6.48449428,159.08,159.07,3.45]
[1752332348697,726.42,159.09,159.07,9.7344]
[1752332348893,183.46,159.09,159.08,3.45]
[1752332349095,3.39,159.11,159.08,3.45]
[1752332349497,3.39,159.11,159.09,6.2836]
[1752332349700,3.39,159.11,159.06,0.03973978]
[1752332349701,183.44,159.12,159.1,3.45]
[1752332350201,183.44,159.12,159.07,3.09449428]
[1752332350202,183.44,159.12,159.11,9.7328]
[1752332350398,183.44,159.12,159.11,3.45]
[1752332351195,3.09449428,159.15,159.11,3.45]
[1752332351196,196.20579428,159.15,159.12,6.2822]
[1752332351399,196.20579428,159.15,159.14,3.45]
[1752332352206,193.1113,159.15,159.14,3.45]
[1752332353104,6.2819,159.14,159.12,3.45]
[1752332353303,9.6719,159.14,159.13,3.45]
[1752332354608,9.6723,159.13,159.12,3.45]
[1752332359310,6.2823,159.13,159.12,3.45]
[1752332361809,6.2818,159.14,159.12,3.45]
[1752332362409,189.7214,159.15,159.12,9.7324]
[1752332362609,189.7214,159.15,159.13,3.42]
[1752332363008,183.44,159.15,159.13,9.702]
[1752332363209,183.44,159.15,159.14,3.42]
[1752332363905,189.7213,159.15,159.14,3.42]
[1752332365312,6.2813,159.15,159.14,3.42]
[1752332365711,189.601,159.16,159.14,9.7016]
[1752332365910,189.601,159.16,159.15,3.42]
[1752332368616,193.001,159.16,159.15,3.42]
[1752332372614,189.601,159.16,159.15,3.42]
[1752332374716,193.001,159.16,159.15,3.42]
[1752332380620,6.2813,159.15,159.14,0.03977168]
[1752332380814,6.2813,159.15,159.05,7.00262773]
[1752332380815,3.09449428,159.15,159.11,3.42]
[1752332381014,3.09449428,159.12,159.11,3.42]
[1752332381226,12.77699428,159.12,159.11,3.42]
[1752332386028,9.37699428,159.12,159.11,3.42]
[1752332390630,6.2825,159.12,159.11,3.42]
[1752332391124,189.5222,159.13,159.11,3.42]
[1752332392228,189.5222,159.13,159.11,6.2828]
[1752332392528,6.2819,159.14,159.12,3.68]
[1752332394035,6.2819,159.14,159.12,9.9624]
[1752332394232,6.2819,159.14,159.13,3.68]
[1752332400348,9.7919,159.14,159.13,3.68]
[1752332400646,6.2829,159.11,159.1,5.28615554]
[1752332400847,9.7929,159.11,159.1,5.28615554]
[1752332401048,3.51,159.11,159.09,5.28615554]
[1752332401249,6.60449428,159.1,159.08,5.28615554]
[1752332401458,3.09449428,159.09,159.06,3.68]
[1752332401649,3.51,159.06,159.05,5.28615554]
[1752332401848,3.51,159.06,159.04,5.28615554]
[1752332402049,3.51,159.04,159.01,7.00262773]
[1752332402346,183.16,159.07,159.01,7.00262773]
[1752332402347,6.60449428,159.02,159.01,3.68]
[1752332402849,3.51,159.01,158.99,3.68]
[1752332403050,3.51,159.01,158.87,14.00525547]
[1752332403051,3.09449428,159.0,158.97,3.68]
[1752332403240,3.09449428,158.98,158.92,7.00262773]
[1752332403446,6.60449428,158.96,158.93,3.68]
[1752332403747,6.60449428,158.96,158.89,13.59843588]
[1752332403748,3.51,158.95,158.94,3.68]
[1752332403944,3.09449428,158.96,158.9,3.68]
[1752332404349,3.51,158.93,158.9,3.68]
[1752332404552,3.51,158.92,158.91,3.68]
[1752332404742,3.51,159.02,158.91,3.68]
[1752332405048,3.51,159.0,158.94,3.68]
[1752332405242,3.51,158.99,158.94,3.68]
[1752332405551,183.16,159.0,158.96,6.2885]
[1752332405747,3.09449428,159.03,158.97,6.77449428]
[1752332405946,729.55,159.04,158.98,3.68]
[1752332406147,729.55,159.04,159.01,3.68]
[1752332406849,183.16,159.04,159.01,3.68]
[1752332407745,3.51,159.06,159.01,3.68]
[1752332407952,3.51,159.06,159.01,6.77449428]
[1752332408152,3.51,159.06,159.03,3.68]
[1752332408353,3.51,159.06,159.02,6.2861]
[1752332408555,3.51,159.06,159.05,3.68]
[1752332409256,9.7949,159.06,159.05,3.68]
[1752332409553,3.51,159.05,159.03,3.68]
[1752332409755,9.7955,159.05,159.03,3.68]
[1752332410256,9.7955,159.05,159.01,9.38129428]
[1752332410553,9.7955,159.05,159.04,3.68]
[1752332412553,9.7961,159.03,159.02,3.68]
[1752332412754,3.51,159.03,158.96,3.09449428]
[1752332412949,3.09449428,159.03,158.97,3.68]
[1752332413155,3.51,159.02,158.97,3.68]
[1752332413356,3.51,159.02,158.98,6.2878]
[1752332413556,3.51,159.02,158.99,3.68]
[1752332413760,6.60449428,159.07,159.01,3.68]
[1752332413959,3.51,159.07,159.01,3.68]
[1752332414261,3.51,159.07,159.03,3.68]
[1752332414859,9.7251,159.06,159.03,3.68]
[1752332415660,6.2853,159.05,159.04,3.61]
[1752332416460,9.7259,159.04,158.98,3.09449428]
[1752332416659,9.7259,159.04,158.99,3.61]
[1752332416860,9.7259,159.04,159.01,3.61]
[1752332417256,6.2859,159.04,159.01,3.61]
[1752332418162,6.2859,159.04,159.01,6.2868]
[1752332418364,6.2859,159.04,159.02,3.61]
[1752332419564,6.2859,159.04,159.0,6.2871]
[1752332419863,9.7259,159.04,159.03,3.61]
[1752332420064,6.2859,159.04,159.03,3.61]
[1752332421665,9.7259,159.04,159.03,3.61]
[1752332422059,3.09449428,159.07,159.02,3.61]
[1752332422366,6.53449428,159.03,158.97,3.61]
[1752332422863,12.82069428,159.03,159.0,3.61]
[1752332423266,6.53449428,159.03,159.0,3.61]
[1752332423564,6.2864,159.02,159.0,3.61]
[1752332424357,9.7261,159.03,159.0,9.8971]
[1752332424663,6.53449428,159.07,159.01,3.61]
[1752332424854,6.2855,159.05,159.02,3.61]
[1752332425460,6.2855,159.05,159.02,6.2864]
[1752332425664,6.2855,159.05,159.04,3.61]
[1752332425865,3.44,159.06,159.01,3.61]
[1752332426163,3.44,159.05,159.01,3.61]
[1752332426765,6.2856,159.04,159.01,9.8966]